bitfinex-derivatives/quotes_ETHF0:USTF0_20250911
["timestamp","ask_amount","ask_price","bid_price","bid_amount"]
[1757612870570,0.9436,4435.5,4435.4,1.00855286]
[1757612870777,1.0648,4435.5,4435.4,1.00855286]
[1757612870977,1.0648,4435.5,4435.4,0.49085286]
[1757612872273,0.9436,4435.5,4435.4,1.00855286]
[1757612872468,1.0648,4435.5,4435.4,0.49085286]
[1757612875376,0.7156,4435.5,4435.4,1.00855286]
[1757612875677,0.7344,4435.5,4435.4,1.00855286]
[1757612876075,1.0648,4435.5,4435.4,0.28535286]
[1757612877078,1.60126727,4435.5,4435.4,0.28535286]
[1757612877279,1.60121599,4435.5,4435.4,0.28535286]
[1757612878076,1.60121599,4435.5,4434.7,0.3053]
[1757612878278,0.7052,4434.9,4434.8,0.28534431]
[1757612878475,0.7052,4434.9,4434.8,0.49654431]
[1757612878674,0.7052,4434.9,4434.8,0.81594431]
[1757612878874,0.7052,4434.9,4434.8,1.03074431]
[1757612879272,0.8512,4434.9,4434.8,1.03074431]
[1757612880582,0.122,4435.0,4434.9,0.5342]
[1757612880783,0.5074,4435.0,4434.9,1.03074431]
[1757612881083,0.5554,4435.0,4434.9,1.03074431]
[1757612882077,0.7532,4435.0,4434.9,1.03074431]
[1757612884477,0.7532,4435.0,4434.9,0.7454]
[1757612885883,0.7532,4435.0,4434.9,0.426]
[1757612885884,0.8745,4435.0,4434.9,0.426]
[1757612886281,0.8265,4435.0,4434.9,0.426]
[1757612886787,0.8265,4435.0,4434.9,0.5306]
[1757612889391,0.7052,4434.3,4434.2,1.03069295]
[1757612889983,0.7052,4434.3,4434.2,0.71129295]
[1757612890183,0.7052,4434.3,4434.2,0.49649295]
[1757612890378,0.7052,4434.3,4433.5,0.1251]
[1757612890379,1.24141105,4434.3,4433.8,0.3194]
[1757612890579,0.5283,4434.0,4433.9,0.49659469]
[1757612890893,0.8265,4434.0,4433.9,0.49659469]
[1757612891991,0.8265,4434.0,4433.5,0.3194]
[1757612892188,0.407,4433.7,4433.6,0.28535547]
[1757612892382,0.7052,4433.7,4433.6,0.28535547]
[1757612892581,1.24134851,4433.7,4432.9,0.3194]
[1757612892788,0.407,4433.0,4432.9,0.5306]
[1757612892990,0.9192,4433.0,4432.9,0.5306]
[1757612893595,1.0371,4433.0,4432.5,0.445]
[1757612893794,0.2982,4432.9,4432.8,0.38264726]
[1757612893990,0.7052,4432.9,4432.8,0.38264726]
[1757612894187,0.7052,4432.9,4432.8,0.17144726]
[1757612894592,1.24086924,4432.9,4432.8,0.17144726]
[1757612894786,0.7052,4432.9,4432.8,0.17144726]
[1757612898488,4.93079,4432.9,4432.8,0.17144726]
[1757612898696,4.7052,4432.9,4432.8,0.17144726]
[1757612898888,0.7052,4432.9,4432.8,0.17144726]
[1757612899094,0.9332,4432.9,4432.8,0.17144726]
[1757612899302,0.7052,4432.9,4432.8,0.70204726]
[1757612899500,0.9332,4432.9,4432.8,0.70204726]
[1757612900294,0.2092,4432.9,4432.8,0.91684726]
[1757612900498,0.2982,4433.5,4433.0,0.1256]
[1757612900796,0.7052,4433.5,4433.4,0.3194]
[1757612901003,0.7052,4433.5,4433.0,0.1256]
[1757612901004,0.7052,4433.1,4433.0,0.3368]
[1757612901201,0.407,4433.1,4433.0,0.5516]
[1757612901592,0.407,4433.1,4433.0,0.871]
[1757612901892,0.2092,4433.1,4433.0,0.871]
[1757612904898,0.7052,4433.1,4433.0,0.5306]
[1757612905202,0.7052,4433.1,4433.0,0.3194]
[1757612905600,0.7052,4432.9,4432.8,0.17144726]
[1757612905996,0.7052,4432.9,4432.8,0.70204726]
[1757612906996,0.7052,4432.9,4432.8,0.91684726]
[1757612908104,3.913,4432.9,4432.8,0.91684726]
[1757612908498,4.141,4432.9,4432.8,0.91684726]
[1757612910907,3.645,4432.9,4432.8,0.91684726]
[1757612911109,3.417,4432.9,4432.8,0.91684726]
[1757612911410,3.4358,4432.9,4432.8,0.91684726]
[1757612911610,3.2078,4432.9,4432.8,0.91684726]
[1757612911811,3.4358,4432.9,4432.8,0.91684726]
[1757612913503,0.228,4432.9,4432.8,0.91684726]
[1757612913708,3.2078,4433.4,4433.0,0.1199]
[1757612914006,0.228,4433.3,4433.2,0.7166]
[1757612914208,0.9399,4433.3,4432.8,0.17144726]
[1757612914405,0.6472,4433.3,4432.9,0.3065]
[1757612914705,0.7119,4433.2,4433.1,0.5178]
[1757612915507,0.7119,4433.2,4432.8,0.17144726]
[1757612915508,0.7119,4433.2,4432.9,0.3065]
[1757612915808,0.4192,4433.2,4432.8,0.47794726]
[1757612916003,0.228,4433.3,4432.8,0.17144726]
[1757612916202,0.7119,4432.9,4432.8,0.88804726]
[1757612916403,0.9399,4432.9,4432.8,1.16912658]
[1757612919012,0.6472,4432.9,4432.8,1.16912658]
[1757612920010,0.4356,4432.9,4432.8,1.16912658]
[1757612920208,0.228,4432.9,4432.8,1.16912658]
[1757612920711,3.2078,4433.4,4432.8,0.86262658]
[1757612920914,0.53421584,4433.3,4433.2,0.4101]
[1757612921110,0.228,4433.3,4433.2,0.99767932]
[1757612921308,0.76244509,4433.3,4433.2,0.99763237]
[1757612922108,0.53444509,4433.3,4433.2,0.99763237]
[1757612922312,0.97004509,4433.3,4433.2,0.99763237]
[1757612923814,1.47434509,4433.3,4433.2,0.99763237]
[1757612924715,1.18164509,4433.3,4433.2,0.99763237]
[1757612925310,1.47434509,4433.3,4433.2,0.99763237]
[1757612926117,1.18164509,4433.3,4433.2,0.99763237]
[1757612928820,1.47434509,4433.3,4433.2,0.79883237]
[1757612929121,1.47434509,4433.3,4433.2,0.58753237]
[1757612929418,1.47434509,4433.3,4433.2,0.28103237]
[1757612929622,1.47434509,4433.3,4433.2,0.58753237]
[1757612929921,1.47434509,4433.3,4433.2,0.79883237]
[1757612930712,1.47434509,4433.3,4433.2,0.99763237]
[1757612930913,1.18164509,4433.3,4433.2,0.99763237]
[1757612931315,0.76244509,4433.3,4433.2,0.99763237]
[1757612933220,0.53444509,4433.3,4433.2,0.99763237]
[1757612933426,0.76244509,4433.3,4433.2,0.99763237]
[1757612936917,0.53444509,4433.3,4433.2,0.99763237]
[1757612937224,0.76244509,4433.3,4433.2,0.99763237]
[1757612938322,1.46434509,4433.3,4433.2,0.99763237]
[1757612938926,1.46434509,4433.3,4433.2,0.79883237]
[1757612939325,1.46434509,4433.3,4433.2,0.28103237]
[1757612940222,1.46434509,4433.3,4433.2,0.28163962]
[1757612940523,1.46434509,4433.3,4433.2,0.80113962]
[1757612940717,1.46434509,4433.3,4433.2,0.28163962]
[1757612942622,5.46434509,4433.3,4433.2,0.28163962]
[1757612944530,1.23634509,4433.3,4433.2,0.28163962]
[1757612944829,1.46434509,4433.3,4433.2,0.80113962]
[1757612946124,1.46434509,4433.3,4433.2,0.80103979]
[1757612946320,1.46434509,4433.3,4433.2,0.28153979]
[1757612946522,1.46434509,4433.3,4432.9,0.3136]
[1757612946817,0.53444509,4433.2,4433.1,0.5195]
[1757612947022,0.94574509,4433.2,4433.1,0.79788949]
[1757612947225,1.23634509,4433.2,4433.1,0.79788949]
[1757612947427,0.53444509,4433.2,4433.1,0.99188949]
[1757612947625,0.228,4433.2,4433.1,0.99188949]
[1757612948628,0.97159346,4433.2,4433.1,0.99188949]
[1757612948924,1.46669346,4433.2,4433.1,0.99188949]
[1757612950327,1.46669346,4433.2,4433.1,0.27838949]
[1757612951221,0.7019,4432.9,4432.8,0.17144726]
[1757612951423,4.67449346,4432.9,4432.8,0.44991315]
[1757612952732,4.15589346,4432.9,4432.8,1.16341315]
[1757612952926,4.38389346,4432.9,4432.8,1.16341315]
[1757612953334,4.67449346,4432.9,4432.8,1.16341315]
[1757612953822,4.15589346,4432.9,4432.8,1.16341315]
[1757612954027,4.38389346,4432.9,4432.8,1.16341315]
[1757612954532,4.38383009,4432.9,4432.8,1.16341315]
[1757612954932,3.97253009,4432.9,4432.8,0.44991315]
[1757612957934,3.74453009,4432.9,4432.8,0.44991315]
[1757612958140,0.228,4432.9,4432.8,4.67550315]
[1757612958729,0.228,4432.9,4432.8,4.44991315]
[1757612958930,0.228,4432.9,4432.8,0.44991315]
[1757612959339,3.4358,4432.9,4432.8,0.44991315]
[1757612959638,3.97246615,4432.9,4432.8,0.44991315]
[1757612959838,4.67436615,4432.9,4432.8,0.44991315]
[1757612962138,3.97246615,4432.9,4432.8,1.16341315]
[1757612962942,0.228,4432.9,4432.8,1.16341315]
[1757612963444,0.97145525,4432.9,4432.8,1.16341315]
[1757612964944,0.53665525,4432.9,4432.8,1.16341315]
[1757612965142,3.9097,4433.4,4433.3,0.7135]
[1757612965345,4.67436987,4433.4,4433.3,0.99196589]
[1757612967549,4.67436987,4433.4,4433.3,0.79796589]
[1757612968844,4.67436987,4433.4,4433.3,0.27846589]
[1757612971747,8.67436987,4433.4,4432.8,0.17144726]
[1757612971950,3.8184,4432.9,4432.8,0.17144726]
[1757612972150,4.58306987,4432.9,4432.8,0.17144726]
[1757612972742,4.58306987,4432.9,4432.2,0.3123]
[1757612972743,0.0292,4432.8,4432.2,0.3123]
[1757612972942,3.3306,4432.3,4432.2,0.3123]
[1757612973146,3.5586,4432.3,4432.2,0.3123]
[1757612973843,4.0952212,4432.3,4432.2,0.3123]
[1757612974850,4.0952212,4432.3,4432.1,0.3123]
[1757612974851,4.0660212,4432.3,4432.1,0.3123]
[1757612975051,0.6594212,4432.2,4432.1,0.3123]
[1757612975440,0.0936,4432.1,4431.5,0.1189]
[1757612975742,0.0936,4431.7,4431.6,0.5157]
[1757612975945,0.0468,4431.7,4431.6,0.7186]
[1757612976146,0.3216,4431.7,4431.6,0.3123]
[1757612976540,0.3216,4431.7,4431.6,0.5157]
[1757612978051,0.228,4431.7,4431.6,0.7186]
[1757612978648,0.2748,4431.7,4431.6,0.7186]
[1757612979354,3.2078,4431.8,4431.6,0.7186]
[1757612979650,3.2078,4431.8,4431.7,0.7186]
[1757612979853,3.4368,4431.8,4431.7,0.7186]
[1757612980051,3.4836,4431.8,4431.7,0.7186]
[1757612980254,3.5304,4431.8,4431.7,0.7186]
[1757612982148,3.2078,4431.8,4431.7,0.7186]
[1757612982457,3.2078,4431.8,4431.5,0.1189]
[1757612982458,35.7088,4432.5,4432.4,0.7186]
[1757612982656,35.9846,4432.5,4432.4,0.7186]
[1757612982961,36.0314,4432.5,4432.4,0.7186]
[1757612983660,36.0314,4432.5,4432.4,1.01620875]
[1757612984960,35.8024,4432.5,4432.4,1.01620875]
[1757612985156,36.0314,4432.5,4432.4,1.01620875]
[1757612985462,36.0314,4432.5,4432.4,1.01619169]
[1757612986061,35.8024,4432.5,4432.4,1.01619169]
[1757612986261,36.0314,4432.5,4432.4,1.01619169]
[1757612986450,35.8024,4432.5,4432.4,1.01619169]
[1757612986655,36.0314,4432.5,4432.4,1.01619169]
[1757612987263,36.0314,4432.5,4432.4,0.81329169]
[1757612987562,36.0314,4432.5,4432.4,0.60989169]
[1757612988365,36.0606,4432.5,4432.4,0.60989169]
[1757612989065,36.0606,4432.5,4432.4,0.29759169]
[1757612989457,36.0606,4432.5,4432.4,0.29754751]
[1757612991176,36.0606,4432.5,4432.4,0.60984751]
[1757612994673,35.8316,4432.5,4432.4,0.60984751]
[1757612994867,36.0314,4432.5,4432.1,0.3123]
[1757612995174,0.0924,4431.7,4431.6,0.5157]
[1757612995469,3.5292,4431.7,4431.6,0.8134088]
[1757612995864,3.5292,4431.7,4431.6,1.0163088]
[1757612997272,3.5292,4431.7,4431.6,1.01638445]
[1757612999874,3.2078,4431.7,4431.6,1.01638445]
[1757613000076,3.2078,4432.2,4432.1,0.7208]
[1757613000377,3.531,4432.2,4432.1,1.01858445]
[1757613000863,3.531,4432.2,4432.1,0.81808445]
[1757613001677,3.531,4432.2,4432.1,1.01858445]
[1757613001873,3.4839,4432.2,4432.1,1.01858445]
[1757613002068,3.531,4432.2,4432.1,0.60578445]
[1757613002269,3.5604,4432.2,4432.1,0.60578445]
[1757613002469,3.531,4432.2,4432.1,0.60578445]
[1757613002670,3.531,4432.2,4432.1,0.81808445]
[1757613002870,3.5604,4432.2,4432.1,0.60578445]
[1757613003176,3.302,4432.2,4432.1,1.01858445]
[1757613003374,3.4368,4432.2,4432.1,1.01858445]
[1757613003772,3.4839,4432.2,4432.1,1.01858445]
[1757613003970,3.4839,4432.2,4432.1,1.01872683]
[1757613004471,3.4368,4432.2,4432.1,1.01872683]
[1757613005178,3.2078,4432.2,4432.1,1.01872683]
[1757613005374,3.4839,4432.2,4432.1,1.01872683]
[1757613005779,3.531,4432.2,4432.1,1.01872683]
[1757613005968,3.302,4432.2,4432.1,1.01872683]
[1757613006176,3.531,4432.2,4432.1,1.01872683]
[1757613006575,3.531,4432.2,4432.1,0.60592683]
[1757613006874,3.5604,4432.2,4432.1,0.60592683]
[1757613007276,4.0974975,4432.2,4432.1,0.29792683]
[1757613009677,3.8390975,4432.2,4432.1,0.60592683]
[1757613009877,4.0680975,4432.2,4432.1,1.01872683]
[1757613010072,3.8390975,4432.2,4432.1,1.01872683]
[1757613010276,4.0680975,4432.2,4432.1,1.01872683]
[1757613011887,4.0680975,4432.2,4432.1,0.81822683]
[1757613012185,4.0680975,4432.2,4432.1,1.01872683]
[1757613013285,4.0680975,4432.2,4432.1,0.81822683]
[1757613013491,4.0680975,4432.2,4432.1,0.60592683]
[1757613015187,4.0980975,4432.2,4432.1,0.60592683]
[1757613015593,4.0680975,4432.2,4432.1,0.81822683]
[1757613015794,4.0980975,4432.2,4432.1,0.60592683]
[1757613016088,4.0680975,4432.2,4432.1,1.01872683]
[1757613017186,4.0680975,4432.2,4432.1,0.81822683]
[1757613017488,4.0980975,4432.2,4432.1,0.60592683]
[1757613019695,3.8390975,4432.2,4432.1,0.81822683]
[1757613019886,4.0680975,4432.2,4432.1,1.01872683]
[1757613020081,3.9738975,4432.2,4432.1,1.01872683]
[1757613020890,3.7448975,4432.2,4432.1,1.01872683]
[1757613021206,0.7660975,4432.2,4432.1,1.01872683]
[1757613022396,0.8620975,4432.2,4432.1,1.01872683]
[1757613022695,4.0998975,4432.2,4432.1,0.60592683]
[1757613023882,4.0998975,4432.2,4432.1,0.29792683]
[1757613023883,0.8920975,4432.2,4432.1,0.29792683]
[1757613024086,4.0998975,4432.2,4432.1,0.60592683]
[1757613024497,4.0998975,4432.2,4432.1,0.29792683]
[1757613025394,4.0698975,4432.2,4431.5,0.4269]
[1757613025694,3.2078,4431.6,4431.5,0.4269]
[1757613025896,3.9738975,4431.6,4431.5,0.6392]
[1757613026104,3.9738975,4431.6,4431.5,0.8397]
[1757613027187,3.7448975,4431.6,4431.5,0.8397]
[1757613027387,0.229,4431.6,4431.5,4.8397]
[1757613027788,3.2078,4432.2,4431.5,0.8397]
[1757613027983,0.76666174,4432.1,4432.0,0.445]
[1757613028190,0.76666174,4432.1,4432.0,0.6488]
[1757613028395,0.76666174,4432.1,4432.0,0.8507]
[1757613028693,0.76666174,4432.1,4432.0,0.445]
[1757613030294,0.53766174,4432.1,4432.0,0.445]
[1757613030501,0.76666174,4432.1,4432.0,0.6488]
[1757613030701,0.76666174,4432.1,4432.0,0.8507]
[1757613034999,0.53766174,4432.1,4432.0,0.8507]
[1757613035196,0.76666174,4432.1,4432.0,0.8507]
[1757613037302,0.76666174,4432.1,4432.0,1.16429605]
[1757613037602,0.53766174,4432.1,4432.0,1.16429605]
[1757613037803,0.76566174,4432.1,4432.0,1.16429605]
[1757613038002,0.53766174,4432.1,4432.0,1.16429605]
[1757613038194,0.76566174,4432.1,4432.0,1.16429605]
[1757613039304,0.53766174,4432.1,4432.0,1.16429605]
[1757613039602,0.76566174,4432.1,4432.0,1.16429605]
[1757613041702,0.53766174,4432.1,4432.0,1.16429605]
[1757613041901,0.76566174,4432.1,4432.0,1.16429605]
[1757613042914,0.76566174,4432.1,4432.0,0.96239605]
[1757613043510,0.76566174,4432.1,4432.0,1.16429605]
[1757613045407,0.53766174,4432.1,4432.0,1.16429605]
[1757613045604,0.76566174,4432.1,4432.0,1.16429605]
[1757613048009,0.53766174,4432.1,4432.0,1.16429605]
[1757613048215,0.76566174,4432.1,4432.0,1.16429605]
[1757613048815,0.76566174,4432.1,4432.0,0.75859605]
[1757613049212,0.76566174,4432.1,4432.0,0.96239605]
[1757613050216,0.76566174,4432.1,4432.0,1.16429605]
[1757613050717,0.53766174,4432.1,4432.0,1.16429605]
[1757613050916,0.76566174,4432.1,4432.0,1.16429605]
[1757613051719,0.53766174,4432.1,4432.0,1.16429605]
[1757613052116,0.76566174,4432.1,4432.0,1.16429605]
[1757613055322,0.76566174,4432.1,4432.0,0.96239605]
[1757613055716,0.76566174,4432.1,4432.0,1.16429605]
[1757613057119,0.53766174,4432.1,4432.0,1.16429605]
[1757613057319,0.1265,4432.5,4432.0,7.52139605]
[1757613057620,0.3068,4432.4,4432.1,42.94747145]
[1757613057814,0.198,4432.3,4432.2,0.31359605]
[1757613058118,0.5048,4432.3,4432.2,0.31359605]
[1757613059322,0.3068,4432.3,4432.2,0.62594019]
[1757613060120,0.5048,4432.3,4432.2,0.62594019]
[1757613061114,0.6999,4432.3,4432.2,0.62594019]
[1757613063124,0.5048,4432.3,4432.2,0.62594019]
[1757613065632,0.6999,4432.3,4432.2,0.62594019]
[1757613067825,0.6999,4432.3,4432.2,0.64730879]
[1757613077641,0.6999,4432.3,4432.2,0.62310614]
[1757613083544,0.6999,4431.6,4431.5,3.2078]
[1757613084235,5.23243974,4431.6,4430.1,3.61861968]
[1757613084438,0.3931,4431.1,4431.0,3.2078]
[1757613084647,0.6999,4431.1,4431.0,3.2078]
[1757613089350,0.6999,4431.1,4431.0,3.4065]
[1757613090153,0.6999,4431.1,4431.0,3.6178]
[1757613090652,0.5048,4431.1,4431.0,3.7897]
[1757613090953,0.3068,4431.1,4431.0,3.7897]
[1757613091250,0.5194,4431.1,4431.0,3.7897]
[1757613091447,0.3068,4431.1,4431.0,3.7897]
[1757613092751,0.1265,4431.5,4431.0,3.7897]
[1757613093057,0.445,4431.5,4431.4,0.4266]
[1757613093355,0.6576,4431.5,4431.4,0.5985]
[1757613094655,0.445,4431.5,4431.4,0.5985]
[1757613094849,0.3185,4431.5,4431.4,0.5985]
[1757613095053,0.6603,4431.5,4431.4,0.5985]
[1757613095456,0.6603,4431.5,4431.4,1.21510899]
[1757613096656,0.3185,4431.9,4431.4,8.25100899]
[1757613096861,0.3185,4432.0,4431.9,0.5985]
[1757613097052,0.3185,4432.0,4431.9,4.42290899]
[1757613097960,32.731,4432.3,4431.9,4.42290899]
[1757613098158,0.3185,4432.2,4432.1,0.5985]
[1757613098455,0.3185,4432.5,4432.4,0.5985]
[1757613098657,0.4477,4432.5,4432.4,4.42290899]
[1757613098960,0.6603,4432.5,4432.4,4.25100899]
[1757613099156,0.8585,4432.5,4432.4,4.03970899]
[1757613099357,0.8585,4432.5,4432.4,3.82440899]
[1757613100252,0.8585,4432.5,4432.4,3.82439425]
[1757613101154,0.8585,4432.5,4432.4,3.82681434]
[1757613101354,0.8585,4432.5,4432.4,4.04211434]
[1757613103661,0.8585,4432.5,4432.4,0.61901434]
[1757613103850,5.08411,4432.5,4432.4,0.61901434]
[1757613104055,5.61893236,4432.5,4432.4,0.61901434]
[1757613104255,5.39332236,4432.5,4432.4,0.61901434]
[1757613104655,5.39332236,4432.5,4431.8,3.2078]
[1757613104855,0.8585,4432.0,4431.9,1.04593985]
[1757613105062,1.0875,4432.0,4431.9,1.04593985]
[1757613105652,0.3185,4432.0,4431.9,1.21783985]
[1757613106162,0.4477,4432.0,4431.9,1.21783985]
[1757613106364,0.3418,4432.5,4432.4,0.4266]
[1757613106564,0.769,4432.5,4432.4,0.4266]
[1757613106765,1.30397132,4432.5,4432.4,0.4266]
[1757613107064,1.0875,4432.5,4432.4,0.74051402]
[1757613107862,1.0875,4432.5,4432.4,0.91241402]
[1757613109065,1.0875,4432.5,4432.4,0.91244789]
[1757613109267,0.8585,4432.5,4432.4,1.21802656]
[1757613109460,1.0875,4432.5,4432.4,1.21802656]
[1757613110255,32.6233,4433.0,4432.5,0.171]
[1757613110461,1.29517813,4432.9,4432.8,0.4266]
[1757613110666,1.29517813,4432.9,4432.8,0.74054789]
[1757613111169,0.7601,4432.9,4432.8,3.94834789]
[1757613111464,0.7601,4432.9,4432.8,4.42501957]
[1757613112457,0.7601,4432.9,4432.8,4.25401957]
[1757613113268,0.7601,4432.9,4432.8,4.25409462]
[1757613113663,0.9583,4432.9,4432.8,4.25409462]
[1757613113867,0.9583,4432.9,4432.8,3.73712294]
[1757613114067,0.9583,4432.9,4432.8,3.52182294]
[1757613114571,0.9583,4432.9,4432.8,3.82743118]
[1757613115664,0.9583,4432.9,4432.8,4.25403118]
[1757613119174,0.5078,4432.9,4432.8,4.25403118]
[1757613119373,0.7368,4432.9,4432.8,4.25403118]
[1757613119973,0.9434,4432.9,4432.8,4.25403118]
[1757613121274,0.5327,4432.9,4432.8,4.42523118]
[1757613122568,0.229,4432.9,4432.8,4.42523118]
[1757613122777,0.5327,4432.9,4432.8,4.42523118]
[1757613124575,0.7368,4432.9,4432.8,4.42523118]
[1757613124776,0.9434,4432.9,4432.8,4.25403118]
[1757613125973,0.9434,4432.9,4432.8,4.04273118]
[1757613126170,0.9434,4432.9,4432.8,3.82743118]
[1757613126370,1.47913105,4432.9,4432.8,4.03343118]
[1757613129179,1.47913105,4432.9,4432.8,0.61963118]
[1757613129677,1.47913105,4432.9,4432.8,0.62510307]
[1757613132782,5.47913105,4432.9,4432.8,0.62510307]
[1757613133171,5.70472105,4432.9,4432.8,0.62510307]
[1757613133667,5.47913105,4432.9,4432.8,0.31402294]
[1757613134272,1.25013105,4432.9,4432.8,0.71732294]
[1757613134582,1.06843105,4432.9,4432.8,1.18103084]
[1757613134774,1.27253105,4432.9,4432.8,1.00983084]
[1757613135876,1.47913105,4432.9,4432.8,1.00983084]
[1757613138283,1.47913105,4432.9,4432.8,4.21763084]
[1757613138977,1.06843105,4432.9,4432.8,4.38883084]
[1757613139174,0.53573105,4432.9,4432.8,4.38883084]
[1757613139382,0.76473105,4432.9,4432.8,4.38883084]
[1757613141385,1.06843105,4432.9,4432.8,4.38883084]
[1757613142794,1.27253105,4432.9,4432.8,4.38883084]
[1757613142984,1.27253105,4432.9,4432.8,4.21763084]
[1757613143794,1.27253105,4432.9,4432.8,4.38883084]
[1757613144290,1.27253105,4432.9,4432.8,4.02033084]
[1757613144291,1.47913105,4432.9,4432.8,4.02033084]
[1757613145294,1.47913105,4432.9,4432.8,4.21763084]
[1757613149006,1.47913105,4432.9,4432.8,3.81433084]
[1757613150107,1.47913105,4432.9,4432.8,4.02833084]
[1757613150499,1.06843105,4432.9,4432.8,4.40243084]
[1757613150913,1.06843105,4432.9,4432.8,4.42400921]
[1757613151099,0.83943105,4432.9,4432.8,4.42400921]
[1757613151400,1.06743105,4432.9,4432.8,4.42400921]
[1757613152598,0.83943105,4432.9,4432.8,4.42400921]
[1757613152800,0.53573105,4432.9,4432.8,4.42400921]
[1757613153806,33.71479333,4433.9,4432.9,0.1718]
[1757613153807,0.2988,4433.8,4432.9,0.1718]
[1757613154003,32.73,4433.9,4433.7,3.6241]
[1757613154205,33.0288,4433.9,4433.8,1.21620921]
[1757613154506,33.56473538,4433.9,4433.8,1.21620921]
[1757613154706,0.53593538,4433.9,4433.8,1.21620921]
[1757613155009,0.83473538,4433.9,4433.8,1.21620921]
[1757613155801,0.53593538,4433.9,4433.8,1.21620921]
[1757613156202,0.229,4434.0,4433.8,1.21620921]
[1757613156203,0.229,4434.0,4433.8,1.04440921]
[1757613156498,0.2988,4434.4,4434.0,0.1718]
[1757613156699,0.2988,4434.4,4434.3,3.7959]
[1757613157005,1.06426664,4434.4,4434.3,4.42400921]
[1757613157203,0.7398,4434.4,4434.3,4.42400921]
[1757613158099,0.7398,4434.4,4434.3,4.10992294]
[1757613158509,0.121,4435.0,4434.3,4.10992294]
[1757613158702,0.9758238,4434.9,4434.8,0.4163]
[1757613159110,1.1789238,4434.9,4434.8,0.4163]
[1757613159304,1.1789238,4434.9,4434.8,3.6241]
[1757613159305,1.4777238,4434.9,4434.8,3.6241]
[1757613160106,1.4777238,4434.9,4434.8,3.2078]
[1757613160407,0.121,4434.5,4434.3,3.3796]
[1757613160611,0.4198,4434.5,4434.4,0.89764956]
[1757613161107,0.6318,4434.5,4434.4,0.89764956]
[1757613161413,0.8349,4434.5,4434.4,0.4163]
[1757613163515,0.8349,4434.5,4434.4,0.214]
[1757613164607,0.8349,4434.5,4434.4,0.52332313]
[1757613165219,0.8349,4434.5,4434.4,0.72562313]
[1757613168014,0.8349,4434.5,4434.4,0.30932313]
[1757613168318,0.8349,4434.5,4434.4,0.52332313]
[1757613169613,0.8349,4434.5,4434.4,0.30932313]
[1757613170118,0.8349,4434.5,4434.4,0.52332313]
[1757613171219,0.6318,4434.5,4434.4,0.89682313]
[1757613171620,0.8598,4434.5,4434.4,0.89682313]
[1757613171921,0.8598,4434.5,4434.4,0.72562313]
[1757613172618,0.8598,4434.5,4434.4,0.89682313]
[1757613173226,0.8598,4434.5,4434.4,0.72562313]
[1757613174824,0.8598,4434.5,4434.4,1.19786459]
[1757613175126,0.6318,4434.5,4434.4,1.19786459]
[1757613175328,0.8598,4434.5,4434.4,1.19786459]
[1757613175825,0.5268,4434.5,4434.4,1.19786459]
[1757613176326,0.8598,4434.5,4434.4,1.19786459]
[1757613177724,1.071,4434.5,4434.4,1.02666459]
[1757613177930,1.071,4434.5,4434.4,0.71734146]
[1757613178227,1.071,4434.5,4434.4,0.30104146]
[1757613181230,1.60708841,4434.5,4434.4,0.30104146]
[1757613182135,0.2988,4434.5,4434.4,0.88394146]
[1757613184237,0.8358289,4434.5,4434.4,0.88394146]
[1757613185328,1.1656289,4434.5,4434.4,0.88394146]
[1757613185527,1.3768289,4434.5,4434.4,0.71184146]
[1757613186835,1.37613043,4434.5,4434.4,0.71184146]
[1757613188136,1.37613043,4434.5,4434.4,0.70933257]
[1757613188930,1.37613043,4434.5,4434.4,0.51363257]
[1757613189234,1.37613043,4434.5,4434.4,0.29853257]
[1757613190536,1.37613043,4434.5,4434.4,0.51363257]
[1757613191140,1.37613043,4434.5,4434.4,0.29853257]
[1757613192432,1.37613043,4434.5,4434.4,0.51363257]
[1757613192633,1.37613043,4434.5,4434.4,0.70933257]
[1757613193540,1.37613043,4434.5,4434.4,0.29853257]
[1757613195237,5.37613043,4434.5,4434.4,0.29853257]
[1757613195443,0.7217,4434.4,4434.3,3.2078]
[1757613195643,0.1175,4434.0,4433.7,3.2078]
[1757613195833,0.7217,4433.8,4433.7,3.2078]
[1757613196141,1.25828468,4433.8,4433.7,3.2078]
[1757613201436,1.25828468,4433.8,4433.0,3.2078]
[1757613201437,0.4235,4433.1,4433.0,3.2078]
[1757613201635,0.9497,4433.1,4433.0,3.4229]
[1757613202242,0.9497,4433.1,4433.0,3.9219]
[1757613202642,0.7385,4433.1,4433.0,3.9219]
[1757613203247,0.228,4433.1,4433.0,4.0412]
[1757613204646,0.131,4433.2,4433.1,0.7141]
[1757613205644,0.8527,4433.2,4433.1,0.7141]
[1757613206545,0.6415,4433.2,4433.1,0.7141]
[1757613207343,0.7038,4433.9,4433.8,0.2004]
[1757613207543,1.46668135,4433.9,4433.8,3.9043]
[1757613207740,3.2078,4434.9,4433.8,3.613]
[1757613207741,0.2953,4434.4,4433.8,3.613]
[1757613207937,0.2953,4434.4,4433.5,0.1238]
[1757613207938,0.2953,4434.6,4434.5,0.4052]
[1757613208137,0.2953,4434.9,4434.5,0.79778296]
[1757613208338,0.7184,4434.9,4434.8,0.6965]
[1757613208646,0.7184,4434.9,4434.8,0.98616167]
[1757613209352,0.7184,4434.9,4434.8,0.6965]
[1757613211240,32.5,4435.3,4434.8,0.6965]
[1757613211437,0.2953,4435.1,4435.0,0.4052]
[1757613211638,0.5233,4435.2,4435.0,0.5245]
[1757613211846,0.7184,4435.2,4435.1,0.6965]
[1757613213553,0.4904,4435.2,4435.1,0.6965]
[1757613213848,0.7184,4435.2,4435.1,0.6965]
[1757613214050,0.4904,4435.2,4435.1,0.6965]
[1757613214254,0.7184,4435.2,4435.1,0.6965]
[1757613214754,0.7184,4435.2,4435.1,0.98571302]
[1757613215943,0.9318,4435.2,4435.1,0.98571302]
[1757613216743,0.9318,4435.2,4435.1,0.6965]
[1757613217650,0.9318,4435.2,4435.1,0.4052]
[1757613217850,0.9318,4435.2,4435.1,0.2048]
[1757613218753,0.9318,4435.2,4435.1,0.4052]
[1757613218947,0.9318,4435.2,4435.1,0.6965]
[1757613219142,0.9318,4435.2,4435.1,0.4052]
[1757613219953,0.9318,4435.2,4435.1,0.6965]
[1757613220453,0.9318,4435.2,4435.1,0.4052]
[1757613221055,0.9318,4435.2,4435.1,0.6965]